bitfinex/quotes_ETHUSD_20251218
["timestamp","ask_amount","ask_price","bid_price","bid_amount"]
[1766024956603,2.3377,2840.3,2839.7,0.76323934]
[1766024956889,2.3377,2840.3,2839.8,0.561]
[1766024958816,0.001,2840.4,2839.8,0.561]
[1766024959687,0.001,2840.4,2839.8,0.58921969]
[1766024959885,0.001,2840.4,2839.8,4.57489566]
[1766024960508,0.001,2840.8,2839.8,4.57489566]
[1766024960509,0.001,2840.8,2840.2,6.09998988]
[1766024960725,0.001,2840.8,2840.3,1.17099899]
[1766024962789,0.001,2840.8,2840.3,4.69174667]
[1766024963286,0.001,2840.8,2840.3,1.17099899]
[1766024964723,0.001,2840.8,2840.3,4.69174805]
[1766024964899,0.001,2841.0,2840.3,4.69174805]
[1766024965099,0.001,2841.0,2840.4,0.6438183]
[1766024966319,2.3377,2840.9,2840.3,1.17099899]
[1766024966523,2.3377,2840.9,2840.3,0.561]
[1766024966699,2.3377,2840.9,2840.2,0.02821969]
[1766024966897,2.3377,2840.9,2840.3,0.561]
[1766024967099,2.3377,2840.9,2840.1,3.52093747]
[1766024967300,2.3377,2840.9,2840.2,0.91591572]
[1766024968832,2.3377,2840.9,2840.2,0.94413541]
[1766024969132,0.001,2841.0,2840.3,6.09998988]
[1766024969307,2.3387,2841.0,2840.3,6.09998988]
[1766024969494,1.7037,2840.9,2840.2,0.35491572]
[1766024969700,0.634,2840.6,2840.2,0.35491572]
[1766024970009,2.3377,2840.6,2840.2,0.91591572]
[1766024970805,2.3377,2840.8,2840.2,0.91591572]
[1766024971035,0.001,2840.9,2839.9,3.52120074]
[1766024971203,0.634,2840.5,2840.2,0.561]
[1766024971531,2.3387,2840.9,2840.2,0.561]
[1766024973149,6.09998988,2840.5,2839.1,0.44648132]
[1766024973312,6.09998988,2840.5,2839.3,3.521992]
[1766024973651,2.3377,2840.2,2839.3,4.082992]
[1766024973947,1.7037,2840.2,2839.4,0.46438023]
[1766024974100,2.3377,2840.1,2839.4,3.98616734]
[1766024974305,2.3377,2840.1,2839.5,0.80691593]
[1766024975635,2.3377,2840.1,2839.5,4.32865155]
[1766024975836,0.405504,2840.6,2839.5,4.32865155]
[1766024976035,2.3377,2840.4,2839.6,0.02821969]
[1766024976743,0.634,2840.5,2839.5,4.32865155]
[1766024976936,1.7037,2840.2,2839.5,4.32865155]
[1766024977107,2.3377,2840.2,2839.6,0.47930318]
[1766024978940,1.7037,2840.4,2839.5,0.002]
[1766024979268,0.634,2840.1,2839.5,0.002]
[1766024979444,2.3377,2840.1,2839.5,0.002]
[1766024980248,0.46438023,2840.6,2839.5,0.002]
[1766024980445,0.634,2840.2,2839.5,0.002]
[1766024980653,2.3377,2840.1,2839.5,0.563]
[1766024981426,1.5304,2840.4,2839.5,0.563]
[1766024981603,2.134,2840.1,2839.5,0.563]
[1766024982411,0.6036,2840.1,2839.5,0.002]
[1766024982750,2.134,2839.8,2839.5,0.002]
[1766024983952,0.19947802,2840.3,2839.5,0.002]
[1766024984121,2.134,2840.2,2839.5,0.002]
[1766024984317,1.5304,2840.2,2839.5,0.002]
[1766024984517,0.6036,2839.9,2839.5,0.002]
[1766024984847,2.134,2839.8,2839.5,0.002]
[1766024986792,0.405504,2840.5,2839.5,0.002]
[1766024986949,0.6036,2840.1,2839.5,0.002]
[1766024987129,0.90341092,2840.4,2839.5,0.002]
[1766024987526,1.5304,2840.1,2839.5,0.002]
[1766024987723,2.134,2839.9,2839.5,0.002]
[1766024989057,0.6036,2840.3,2839.5,0.002]
[1766024989352,1.5304,2839.8,2839.5,0.002]
[1766024989558,2.134,2839.7,2839.5,0.002]
[1766024989722,1.5304,2840.1,2839.5,0.002]
[1766024989924,0.6036,2839.8,2839.5,0.002]
[1766024990154,2.134,2839.8,2839.5,0.002]
[1766024992865,0.405504,2840.5,2839.5,0.002]
[1766024993229,1.5304,2840.2,2839.5,0.002]
[1766024993458,2.134,2840.1,2839.5,0.002]
[1766024996965,0.46438023,2840.4,2839.5,0.002]
[1766024997137,0.6036,2840.0,2839.5,0.002]
[1766024997333,2.134,2839.7,2839.5,0.002]
[1766024998453,0.39848937,2840.3,2839.5,0.002]
[1766024998641,1.5304,2840.2,2839.5,0.002]
[1766024998844,1.5304,2840.0,2839.5,0.002]
[1766024999055,1.5304,2839.8,2839.5,0.002]
[1766024999239,2.134,2839.8,2839.5,0.002]
[1766025000137,0.6036,2840.2,2839.5,0.002]
[1766025000457,0.46438023,2840.6,2839.0,0.563]
[1766025000458,0.6036,2839.9,2839.0,0.563]
[1766025000664,2.134,2840.2,2839.1,0.02821969]
[1766025000976,2.134,2840.1,2839.3,0.02821969]
[1766025001583,2.134,2840.1,2839.2,3.52208522]
[1766025001871,1.5304,2840.1,2839.1,3.55042723]
[1766025002089,0.6036,2839.6,2839.0,0.002]
[1766025002253,0.6036,2839.7,2839.0,0.002]
[1766025002453,1.5304,2839.2,2838.7,3.52269998]
[1766025002639,2.134,2839.1,2838.5,3.52294829]
[1766025002835,0.46438023,2840.0,2838.6,4.57644901]
[1766025002836,0.405504,2839.9,2838.6,4.57644901]
[1766025003040,0.6036,2839.7,2838.7,0.4576449]
[1766025003271,1.5304,2839.4,2838.7,0.4576449]
[1766025003473,2.134,2839.3,2838.7,0.4576449]
[1766025003680,0.46438023,2840.3,2838.8,0.06344584]
[1766025003875,0.415805,2840.5,2839.0,0.02821969]
[1766025003876,2.134,2840.0,2839.0,0.02821969]
[1766025004038,2.134,2840.0,2839.0,0.58921969]
[1766025004242,2.134,2840.0,2839.2,0.02821969]
[1766025004473,0.6036,2840.3,2839.1,0.02821969]
[1766025004682,2.134,2840.1,2839.3,0.02821969]
[1766025005338,1.5304,2840.3,2839.1,0.02821969]
[1766025005570,1.5304,2839.9,2839.1,3.55040815]
[1766025005779,2.134,2839.9,2839.1,3.55040815]
[1766025006143,0.6036,2840.1,2839.1,3.55240815]
[1766025006372,2.134,2840.1,2839.1,3.55240815]
[1766025006577,2.134,2840.1,2839.1,7.07465111]
[1766025006791,0.24002842,2840.3,2839.2,0.76356511]
[1766025006969,1.5304,2840.1,2839.2,0.76356511]
[1766025007171,2.134,2840.1,2839.2,0.76356511]
[1766025007556,0.405504,2840.5,2839.2,0.76356511]
[1766025007759,1.5304,2840.2,2839.2,0.76356511]
[1766025007982,2.134,2840.0,2839.2,4.28568049]
[1766025008177,2.134,2840.0,2839.3,0.4269544]
[1766025009560,2.134,2840.0,2839.2,4.28568189]
[1766025009756,2.134,2840.0,2839.2,0.76356511]
[1766025009956,1.5304,2840.3,2839.2,0.76356511]
[1766025010258,2.134,2840.1,2839.3,0.02821969]
[1766025010473,0.46438023,2840.4,2839.3,0.02821969]
[1766025010782,2.2242,2840.3,2839.4,0.43139005]
[1766025010952,1.615,2840.3,2839.4,0.43139005]
[1766025011152,0.6092,2840.0,2839.4,0.43139005]
[1766025011377,2.2242,2840.0,2839.4,0.43139005]
[1766025011686,0.43902716,2840.4,2839.4,0.43139005]
[1766025011886,1.615,2840.1,2839.4,0.43139005]
[1766025012054,2.2242,2840.0,2839.4,0.43139005]
[1766025013266,0.6092,2840.2,2839.5,0.39816023]
[1766025013471,2.2242,2840.2,2839.5,0.39816023]
[1766025013677,2.2242,2840.2,2839.3,0.03021969]
[1766025013988,0.6092,2840.2,2839.3,0.03021969]
[1766025014189,2.2242,2840.1,2839.3,0.03021969]
[1766025015364,0.46438023,2840.5,2839.3,10.21313337]
[1766025015559,0.405504,2840.6,2839.4,0.8845993]
[1766025015859,0.46438023,2840.3,2839.4,0.8845993]
[1766025016082,2.2242,2840.1,2839.4,0.8845993]
[1766025018095,0.86988423,2840.6,2839.4,4.40646501]
[1766025018266,1.615,2840.3,2839.4,0.8845993]
[1766025018588,2.2242,2840.3,2839.5,0.40438211]
[1766025018790,1.615,2840.5,2839.5,0.40438211]
[1766025018980,0.6092,2840.2,2839.5,0.40438211]
[1766025019289,2.2242,2840.2,2839.5,0.40438211]
[1766025019788,0.001,2840.8,2839.7,0.02821969]
[1766025019954,0.001,2840.8,2839.9,0.02821969]
[1766025020160,2.2242,2840.6,2839.9,0.02821969]
[1766025021902,2.2242,2840.6,2839.9,3.54945844]
[1766025022068,2.2252,2840.6,2839.9,3.54945844]
[1766025022265,2.2252,2840.6,2839.9,3.54944405]
[1766025022596,0.001,2840.6,2840.0,0.82481311]
[1766025022796,0.001,2840.6,2840.1,0.58921969]
[1766025023092,0.001,2840.8,2840.2,0.561]
[1766025023306,0.001,2840.8,2840.2,6.6609356]
[1766025023505,2.2242,2840.7,2840.0,0.82481311]
[1766025023795,0.001,2840.8,2840.1,1.02664541]
[1766025023996,0.001,2840.8,2840.3,0.02821969]
[1766025024181,0.001,2840.8,2840.3,3.52064194]
[1766025024699,0.001,2840.8,2840.3,3.54886163]
[1766025027492,0.001,2840.8,2840.3,3.54897257]
[1766025027692,0.001,2840.8,2840.4,0.79030769]
[1766025028475,0.001,2840.8,2840.3,0.02821969]
[1766025030077,0.001,2840.8,2840.3,3.54897328]
[1766025030277,0.001,2840.8,2840.3,0.02821969]
[1766025031378,2.2252,2840.8,2840.3,0.02821969]
[1766025031582,2.2252,2840.8,2840.1,4.5476044]
[1766025031887,0.001,2840.8,2840.0,0.561]
[1766025032108,0.001,2840.8,2839.5,0.02821969]
[1766025032109,1.615,2840.5,2839.3,6.13015529]
[1766025032412,1.014704,2840.7,2839.4,0.561]
[1766025032627,1.615,2840.4,2839.4,0.561]
[1766025032906,0.6092,2839.7,2839.4,0.561]
[1766025033120,2.2242,2839.7,2839.3,0.002]
[1766025033275,0.6092,2839.5,2839.3,0.002]
[1766025033613,2.2242,2839.4,2839.3,0.002]
[1766025033995,1.615,2839.7,2839.1,0.002]
[1766025034199,2.2242,2839.4,2839.1,0.002]
[1766025034377,0.6092,2839.4,2839.1,0.002]
[1766025034578,0.46438023,2840.1,2839.1,0.002]
[1766025034579,2.44662,2839.3,2839.1,0.002]
[1766025035211,2.2242,2839.5,2839.1,0.002]
[1766025035405,2.07938023,2839.9,2839.1,0.002]
[1766025035578,2.2242,2839.7,2839.1,0.002]
[1766025035875,0.405504,2840.3,2839.1,0.002]
[1766025036076,0.6092,2839.9,2839.1,0.563]
[1766025036292,0.6092,2839.9,2839.2,0.02821969]
[1766025036507,0.6092,2840.3,2839.2,0.02821969]
[1766025036713,1.615,2840.0,2839.2,0.02821969]
[1766025036914,2.2242,2839.9,2839.2,0.02821969]
[1766025037110,2.2242,2839.9,2839.1,1.32679285]
[1766025038179,2.2242,2839.9,2839.2,0.48793544]
[1766025038378,2.2242,2840.2,2839.2,4.03824539]
[1766025038692,2.2242,2840.2,2839.2,13.17236445]
[1766025038891,2.2242,2840.4,2839.3,0.02821969]
[1766025039200,0.46538023,2840.6,2839.3,0.02821969]
[1766025039517,0.6092,2840.1,2839.3,0.561]
[1766025039685,0.46438023,2840.4,2839.4,0.02821969]
[1766025039686,2.2242,2840.3,2839.4,0.02821969]
[1766025039888,2.2242,2840.5,2839.5,0.03521746]
[1766025040095,2.2242,2840.5,2839.6,0.02821969]
[1766025040306,2.2242,2840.5,2839.6,3.54973684]
[1766025040510,1.615,2840.5,2839.6,3.54973684]
[1766025040688,2.2242,2840.4,2839.6,4.25970529]
[1766025041725,1.5251,2840.5,2839.6,4.25970529]
[1766025041929,0.001,2840.6,2839.6,0.70996845]
[1766025042091,1.5251,2840.5,2839.6,0.70996845]
[1766025042291,2.1359,2840.3,2839.4,3.55004355]
[1766025042493,0.001,2840.6,2839.5,0.561]
[1766025042903,1.5251,2840.5,2839.5,4.08267588]
[1766025043196,1.5251,2840.5,2839.6,3.52161372]
[1766025043521,0.001,2840.6,2839.5,10.18066412]
[1766025043713,0.001,2840.6,2839.6,1.37307536]
[1766025044025,0.6108,2840.4,2839.6,1.37307536]
[1766025044204,2.1359,2840.4,2839.6,1.37307536]
[1766025044405,2.1359,2840.4,2839.6,4.89468446]
[1766025044604,2.1359,2840.4,2839.6,1.37307536]
[1766025045018,0.001,2840.6,2839.6,1.37307536]
[1766025045214,2.1359,2840.5,2839.7,0.67947116]
[1766025045620,1.5251,2840.5,2839.7,0.67947116]
[1766025045931,2.1359,2840.4,2839.7,0.67947116]
[1766025049028,2.1359,2840.3,2839.7,0.67947116]
[1766025051512,0.001,2840.5,2839.7,0.67947116]
[1766025051827,2.1359,2840.1,2839.7,0.561]
[1766025053535,0.6108,2840.3,2839.7,0.561]
[1766025053711,2.1359,2840.3,2839.7,0.561]
[1766025054228,0.001,2840.3,2839.7,4.08244621]
[1766025056807,2.1369,2840.3,2839.7,4.08244621]
[1766025057331,2.1369,2840.3,2839.8,1.0180308]
[1766025060632,0.6108,2839.9,2839.7,4.08244621]
[1766025060834,0.6108,2839.9,2839.2,0.405504]
[1766025061036,2.1359,2839.9,2839.3,4.54732664]
[1766025061242,2.1369,2840.3,2839.4,6.09786181]
[1766025061427,2.1369,2840.3,2839.4,6.1260815]
[1766025061731,0.001,2840.3,2839.4,6.1260815]
[1766025061934,0.001,2840.3,2839.7,6.09786181]
[1766025062132,0.001,2840.3,2839.7,6.65886181]
[1766025062337,0.001,2840.3,2839.7,7.29447856]
[1766025063331,0.001,2840.3,2839.8,3.52137474]
[1766025063536,0.001,2840.3,2839.7,1.19661675]
[1766025063721,0.001,2840.3,2839.7,1.22483644]
[1766025064437,0.001,2840.3,2839.7,1.19661675]
[1766025065537,0.001,2840.3,2839.7,4.71805626]
[1766025065906,0.001,2840.3,2839.8,0.56]
[1766025066314,0.001,2840.5,2839.8,1.64149181]
[1766025066515,0.001,2840.5,2839.9,6.09786181]
[1766025067624,0.001,2840.5,2840.0,3.52112676]
[1766025068504,0.001,2840.5,2839.9,9.61907325]
[1766025069208,0.001,2840.6,2840.0,0.03521126]
[1766025069409,0.001,2840.6,2840.1,0.97105471]
[1766025070217,2.1369,2840.6,2840.1,0.97105471]
[1766025070422,2.1359,2840.5,2840.1,0.97105471]
[1766025070915,0.001,2840.6,2840.1,1.53105471]
[1766025070916,0.6584,2840.4,2840.1,1.53105471]
[1766025071147,0.001,2840.6,2839.3,0.14315347]
[1766025071449,0.6584,2840.0,2839.3,0.002]
[1766025071612,2.0889,2840.3,2839.3,0.002]
[1766025071942,0.14218436,2840.6,2839.5,6.09786181]
[1766025071943,2.0889,2840.5,2839.5,6.09786181]
[1766025072138,1.4305,2840.3,2839.4,0.96219761]
[1766025072318,2.0889,2840.3,2839.4,0.96219761]
[1766025072512,6.56224204,2840.5,2839.4,0.96219761]
[1766025072712,0.46438023,2840.3,2839.4,0.96219761]
[1766025072942,2.0889,2840.1,2839.4,0.96219761]
[1766025073649,0.001,2840.6,2839.5,0.02821969]
[1766025073946,2.0889,2840.5,2839.5,0.02821969]
[1766025074109,0.6584,2840.4,2839.5,3.5499455]
[1766025074315,0.6584,2840.4,2839.6,1.06100049]
[1766025075350,1.4305,2840.5,2839.7,6.1260815]
[1766025075515,0.6594,2840.6,2839.7,6.1260815]
[1766025075516,0.001,2840.6,2839.7,6.1260815]
[1766025076044,0.001,2840.6,2839.9,0.02821969]
[1766025076429,0.001,2840.6,2840.0,0.02821969]
[1766025076619,0.001,2840.8,2840.1,0.70707149]
[1766025077633,0.001,2840.3,2840.1,0.70707149]
[1766025079256,0.001,2840.3,2840.1,4.22806546]
[1766025080024,0.001,2840.3,2840.1,0.70707149]
[1766025080354,0.001,2840.3,2840.0,4.08105064]
[1766025080732,0.001,2840.3,2840.0,0.56]
[1766025082753,2.0899,2840.8,2840.0,4.08109972]
[1766025084545,0.001,2840.8,2840.0,4.08109972]
[1766025084822,0.001,2840.8,2840.1,1.02071812]
[1766025085025,2.0889,2840.7,2840.1,1.02071812]
[1766025087651,0.6584,2840.6,2839.7,0.56]
[1766025087852,2.0889,2840.4,2839.7,1.02438023]
[1766025088055,0.001,2840.8,2839.7,0.58821969]
[1766025088254,2.0889,2840.6,2839.8,3.52130161]
[1766025088550,0.001,2840.8,2839.9,0.43917182]
[1766025088721,0.001,2840.8,2840.0,3.52109761]
[1766025088924,2.0899,2840.8,2840.0,3.52109761]
[1766025089324,2.0899,2840.8,2840.1,3.52094184]
[1766025089618,2.0899,2840.8,2840.1,6.09786181]
[1766025089823,2.0899,2840.8,2840.2,0.60978618]
[1766025092455,0.001,2840.8,2840.2,0.60978618]
[1766025092661,0.001,2841.0,2840.4,6.09786181]
[1766025092845,0.001,2841.6,2840.8,0.46438023]
[1766025093033,2.0889,2842.2,2841.2,6.09786181]
[1766025093233,2.0889,2842.1,2841.3,0.56]
[1766025093443,2.0899,2842.0,2841.3,0.56]
[1766025093964,2.0889,2841.9,2841.3,0.56]
[1766025094542,0.001,2842.0,2841.3,7.59899296]
[1766025094858,0.001,2842.0,2841.5,0.02821969]
[1766025095156,0.001,2842.0,2841.4,0.37558401]
[1766025096141,0.001,2842.0,2841.4,0.4038037]
[1766025096336,0.001,2842.0,2841.5,3.51926799]
[1766025096538,0.6584,2842.5,2841.6,6.1260815]
[1766025096742,0.6584,2842.5,2841.7,0.56]
[1766025097262,0.6584,2842.8,2841.9,6.09786181]
[1766025097565,1.4305,2842.9,2841.9,6.09786181]
[1766025097932,1.4305,2842.8,2841.6,0.90355205]
[1766025098138,1.4305,2842.4,2841.7,0.56]
[1766025098333,0.6584,2842.5,2841.7,4.07894489]
[1766025099464,2.0889,2842.5,2841.6,0.46438023]
[1766025099767,0.6584,2842.1,2841.3,0.46438023]
[1766025100074,6.09786181,2842.6,2841.3,1.02438023]
[1766025100374,1.4305,2841.7,2841.0,0.56]
[1766025100532,2.0889,2841.7,2841.0,4.54422912]
[1766025101183,2.0889,2841.7,2841.0,4.07984889]
[1766025101467,1.5241,2841.9,2841.0,0.56]
[1766025101655,2.1569,2841.6,2841.0,0.56]
[1766025101858,2.1569,2841.6,2840.5,1.05816186]
[1766025101859,2.1569,2841.5,2840.5,1.05816186]
[1766025102030,2.1569,2841.4,2840.6,4.08028127]
[1766025102234,6.09786181,2840.9,2839.6,0.002]
[1766025102468,1.5241,2840.4,2839.6,0.562]
[1766025102671,2.1569,2840.4,2840.3,1.05823278]
[1766025102836,2.1569,2840.8,2840.3,1.05823278]
[1766025103036,2.1569,2840.6,2840.3,1.05823278]
[1766025103460,0.82547618,2840.7,2839.6,0.59021969]
[1766025103663,2.1569,2840.8,2839.6,0.59021969]
[1766025104637,2.1569,2840.9,2839.7,7.04299748]
[1766025104838,2.1569,2841.3,2840.2,0.02821969]
[1766025105036,2.1569,2841.5,2840.2,0.02821969]
[1766025105364,2.1569,2841.4,2840.2,0.02821969]
[1766025106973,0.6328,2841.1,2840.0,0.002]
[1766025107173,0.6328,2840.7,2840.0,0.002]
[1766025107348,1.5241,2840.9,2840.0,0.002]
[1766025107550,1.5241,2841.2,2840.0,0.002]
[1766025107750,1.5241,2840.8,2840.0,0.002]
[1766025107955,1.5241,2840.4,2840.0,0.002]
[1766025108154,2.1569,2840.4,2840.0,0.002]
[1766025111940,0.6328,2840.8,2840.0,0.002]
[1766025112141,2.1569,2840.7,2840.0,0.002]
[1766025113374,0.20841,2841.1,2840.0,0.35714704]
[1766025113574,2.1569,2841.0,2840.0,0.38536673]
[1766025115167,2.1569,2841.0,2840.1,0.56]
[1766025116912,0.20841,2841.1,2840.1,0.56]
[1766025117195,2.1569,2841.3,2840.2,0.02821969]
[1766025117345,2.1569,2841.3,2840.2,3.54908794]
[1766025117548,2.1569,2841.3,2840.1,4.08097021]
[1766025117742,0.6328,2841.1,2840.1,0.56]
[1766025117991,2.1569,2841.1,2840.2,0.02821969]
[1766025118184,2.37259,2841.1,2840.2,0.02821969]
[1766025119464,0.21569,2841.1,2840.0,0.03021969]
[1766025119665,2.1569,2841.0,2840.2,0.56]
[1766025120660,2.1569,2841.0,2840.2,1.02438023]
[1766025120861,2.1569,2841.0,2840.2,1.05259992]
[1766025121069,1.5241,2841.4,2840.0,0.002]
[1766025121380,2.1569,2840.7,2840.0,0.002]
[1766025121568,2.1569,2840.7,2840.1,0.56]
[1766025122304,2.1569,2840.7,2840.0,0.002]
[1766025123821,0.21569,2840.7,2840.0,0.002]
[1766025123976,0.46438023,2841.0,2840.0,0.002]
[1766025124178,0.6328,2840.6,2840.0,0.002]
[1766025124512,2.1569,2840.3,2840.0,0.002]
[1766025124814,0.6328,2840.8,2840.0,0.002]
[1766025124977,0.6328,2840.6,2840.0,0.002]
[1766025125173,0.405504,2840.9,2840.0,0.002]
[1766025125404,0.6328,2840.5,2840.0,0.002]
[1766025125588,0.6328,2840.3,2840.0,0.002]
[1766025125788,2.1569,2840.3,2840.0,0.002]
[1766025128213,3.52017926,2840.8,2840.0,0.002]
[1766025128503,1.5241,2840.4,2840.0,0.002]
[1766025128687,2.1569,2840.4,2840.0,0.002]
[1766025130325,0.39256833,2840.7,2840.0,0.002]
[1766025130528,1.4924,2840.4,2840.0,0.002]
[1766025130692,2.1466,2840.4,2840.0,0.002]
[1766025131325,0.39256833,2840.7,2840.0,0.002]
[1766025131621,2.0627,2840.3,2840.0,0.002]
[1766025132292,1.446,2840.5,2840.0,0.002]
[1766025132602,2.0627,2840.3,2840.0,0.002]
[1766025133115,0.6167,2840.4,2840.0,0.002]
[1766025133325,2.0627,2840.4,2840.0,0.002]
[1766025134530,0.39127476,2840.6,2840.0,0.002]
[1766025134824,2.0627,2840.4,2840.0,0.002]
[1766025135434,0.39127476,2840.6,2840.0,0.002]
[1766025135606,1.446,2840.3,2840.0,0.002]
[1766025138137,0.6167,2840.5,2840.0,0.002]
[1766025138340,2.0627,2841.0,2840.0,0.002]
[1766025138512,2.0627,2841.0,2840.1,0.02821969]
[1766025139107,2.0627,2841.0,2840.3,0.02821969]
[1766025139325,0.6167,2841.4,2840.3,0.02821969]
[1766025139521,2.0627,2841.2,2840.3,0.02821969]
[1766025139718,0.46438023,2841.4,2840.3,0.02821969]
[1766025139929,2.0627,2841.1,2840.1,0.02821969]
[1766025140540,2.0627,2841.1,2840.1,3.54920181]
[1766025140804,3.66043829,2841.5,2840.3,0.02821969]
[1766025140805,2.0627,2841.4,2840.3,0.02821969]
[1766025140962,10.161,2842.5,2840.5,0.02821969]
[1766025140963,13.67911485,2842.5,2840.5,0.02821969]
[1766025141111,2.0627,2841.7,2840.7,0.02821969]
[1766025141306,2.31540802,2841.7,2840.7,0.02821969]
[1766025142325,2.0627,2841.6,2840.7,0.02821969]
[1766025142739,2.0627,2841.6,2840.5,3.54865084]
[1766025142944,2.0627,2841.6,2840.7,0.02821969]
[1766025145217,2.0627,2841.6,2840.7,3.54846291]
[1766025145451,2.0627,2841.6,2840.8,0.41084629]
[1766025146144,2.0627,2841.6,2840.7,0.02821969]
[1766025146641,0.001,2842.0,2840.7,0.02821969]
[1766025146845,2.0627,2841.9,2840.7,0.02821969]
[1766025147066,0.6167,2841.8,2840.7,0.02821969]
[1766025147223,2.0627,2841.8,2840.7,0.02821969]
[1766025147548,0.60467746,2841.8,2840.8,0.41437535]
[1766025147751,0.60467746,2841.8,2840.7,0.02821969]
[1766025147920,0.6167,2841.4,2840.7,0.56]
[1766025148115,1.446,2841.3,2840.7,0.56]
[1766025148758,0.6167,2841.4,2840.7,0.56]
[1766025149058,2.0627,2841.6,2840.8,0.02821969]
[1766025149624,2.0627,2841.6,2840.7,0.56]
[1766025149625,2.0627,2841.5,2840.7,0.56]
[1766025149825,0.26673775,2841.6,2840.7,0.56]
[1766025150137,2.0627,2841.5,2840.7,0.56]
[1766025150565,0.26673775,2841.6,2840.7,0.56]
[1766025151025,2.0627,2841.9,2840.7,4.10845868]
[1766025151369,0.001,2842.0,2840.9,0.02821969]
[1766025151658,2.0627,2841.9,2840.9,0.02821969]
[1766025151829,0.46538023,2842.0,2840.7,0.02821969]
[1766025152033,2.0575,2841.6,2840.8,0.56]
[1766025152864,0.46438023,2841.9,2840.7,0.61511534]
[1766025153162,0.5947,2841.3,2840.6,0.56]
[1766025153373,2.0575,2841.2,2840.6,0.56]
[1766025153664,0.5947,2841.4,2840.6,0.56]
[1766025153826,1.4628,2841.5,2840.6,0.56]
[1766025154031,1.4628,2841.7,2840.7,0.41107263]
[1766025154230,1.4628,2841.3,2840.6,0.56]
[1766025154456,1.4628,2841.3,2840.5,0.03021969]
[1766025154457,2.0575,2841.1,2840.5,0.002]
[1766025155060,1.3728,2841.9,2840.6,0.02821969]
[1766025155261,0.46438023,2841.8,2840.8,0.02821969]
[1766025155464,0.5966,2841.6,2840.6,0.02821969]
[1766025155633,1.3728,2841.3,2840.5,0.002]
[1766025155965,1.9694,2841.2,2840.5,0.45953073]
[1766025156332,1.9694,2841.2,2840.5,0.92391096]
[1766025156664,0.001,2842.0,2840.8,0.02821969]
[1766025156857,1.3728,2841.6,2840.6,0.02821969]
[1766025157060,1.9694,2841.4,2840.6,0.02821969]
[1766025157258,3.51892886,2841.8,2840.6,0.02821969]
[1766025157459,1.3728,2841.4,2840.6,0.02821969]
[1766025157767,1.9694,2841.4,2840.5,1.48391096]
[1766025158268,0.39833091,2841.7,2840.5,1.48391096]
[1766025158269,0.39833091,2841.7,2840.5,0.45953073]
[1766025158435,1.3728,2841.2,2840.5,0.002]
[1766025158739,1.9694,2841.1,2840.5,0.002]
[1766025159133,4.38902837,2841.6,2840.5,0.002]
[1766025159357,1.3728,2841.5,2840.5,0.002]
[1766025159597,0.5966,2841.2,2840.5,0.002]
[1766025159762,1.9694,2841.1,2840.5,0.002]
[1766025159946,0.57618284,2841.4,2840.5,0.002]
[1766025160134,1.3728,2841.3,2840.5,0.002]
[1766025160338,1.9694,2841.1,2840.5,0.002]
[1766025160636,1.3728,2840.4,2840.0,0.002]
[1766025160838,1.4005,2840.8,2840.0,0.002]
[1766025161068,6.09271399,2840.7,2839.6,0.002]
[1766025161277,0.46438023,2840.6,2839.6,0.002]
[1766025161458,0.6197,2840.1,2839.4,0.002]
[1766025161635,1.4005,2839.6,2839.3,0.002]
[1766025161836,2.0202,2839.5,2839.3,0.002]
[1766025162067,0.46438023,2840.3,2839.3,0.002]
[1766025162259,0.6197,2840.1,2839.1,0.002]
[1766025162452,1.4005,2839.7,2839.1,0.002]
[1766025162770,2.0202,2839.3,2839.1,0.002]
[1766025163774,0.46438023,2839.7,2839.1,0.002]
[1766025164077,0.6197,2839.3,2839.1,0.002]
[1766025164277,2.0202,2839.3,2839.1,0.002]
[1766025164771,1.4005,2839.4,2839.1,0.002]
[1766025164972,2.0202,2839.3,2839.1,0.002]
[1766025166272,1.4005,2839.6,2839.1,0.002]
[1766025166583,2.0202,2839.4,2839.1,0.002]
[1766025168179,2.0202,2839.9,2839.1,0.002]
[1766025169369,0.6197,2839.9,2839.1,0.002]
[1766025169570,0.6197,2839.5,2839.1,0.002]
[1766025169768,2.0202,2839.5,2839.1,0.002]
[1766025170089,0.6197,2839.7,2839.1,0.002]
[1766025170249,1.4005,2839.4,2839.1,0.002]
[1766025170444,2.0202,2839.4,2839.1,0.002]
[1766025174757,0.20202,2839.4,2839.0,0.002]
[1766025174962,0.6318,2839.4,2839.0,0.002]
[1766025175159,1.4756,2839.6,2839.0,0.002]
[1766025175464,3.52154791,2839.7,2839.0,0.002]
[1766025175465,2.1074,2839.2,2839.0,0.002]
[1766025177683,1.4756,2839.8,2839.0,0.002]
[1766025177885,1.4756,2839.4,2839.0,0.002]
[1766025178081,2.1074,2839.3,2839.0,0.002]
[1766025178474,5.4879131,2842.0,2839.1,0.58821969]
[1766025178794,0.6318,2840.6,2839.2,0.56]
[1766025178994,0.6318,2840.2,2839.0,0.002]
[1766025179196,1.4756,2839.9,2839.2,0.46438023]
[1766025179367,2.1074,2839.8,2839.2,0.46438023]
[1766025180382,1.4241,2840.6,2839.2,0.46438023]
[1766025180689,2.0088,2840.2,2839.3,0.75088662]
[1766025180873,1.4241,2840.3,2839.3,0.75088662]
[1766025181074,4.06128909,2840.6,2839.3,0.75088662]
[1766025181275,1.4241,2840.0,2839.3,0.75088662]
[1766025181477,2.0088,2840.0,2839.3,4.27281895]